bitfinex-derivatives/quotes_SOLF0:USTF0_20250911
["timestamp","ask_amount","ask_price","bid_price","bid_amount"]
[1757592694490,6.9,227.47,227.28,0.02835611]
[1757592694888,6.9,227.47,227.27,7.01]
[1757592695087,6.9,227.47,227.35,0.02903131]
[1757592697191,20.18,227.47,227.35,0.02903131]
[1757592697485,0.03379323,227.43,227.19,7.01]
[1757592697685,6.9,227.42,227.19,7.01]
[1757592698583,0.02996766,227.33,227.19,7.01]
[1757592698884,6.9,227.42,227.19,7.01]
[1757592699389,0.02966973,227.28,227.19,7.01]
[1757592699592,6.9,227.42,227.19,7.01]
[1757592699787,0.03148943,227.26,227.19,7.01]
[1757592700089,6.9,227.42,227.19,7.01]
[1757592700289,0.03075812,227.25,227.19,7.01]
[1757592700486,6.9,227.42,227.19,7.01]
[1757592700890,0.03158032,227.24,227.14,7.04]
[1757592701087,6.9,227.42,227.14,7.04]
[1757592701288,0.028597,227.21,227.14,7.04]
[1757592701490,6.9,227.42,227.26,0.03345877]
[1757592701887,6.9,227.42,227.08,13.28]
[1757592702094,6.9,227.32,227.04,7.01]
[1757592702588,6.9,227.32,227.16,0.02814603]
[1757592702988,6.9,227.32,227.09,7.01]
[1757592703290,6.9,227.32,227.22,0.03280145]
[1757592703990,0.44,227.31,227.09,7.01]
[1757592704291,0.03205338,227.29,227.09,7.01]
[1757592704493,6.9,227.28,227.09,7.01]
[1757592705395,0.03051169,227.21,227.11,7.04]
[1757592705694,6.9,227.35,227.11,7.04]
[1757592705888,6.9,227.35,227.14,0.02983509]
[1757592706187,6.9,227.35,227.11,7.04]
[1757592707394,31.1564367,227.35,227.11,7.04]
[1757592708591,13.28,227.31,227.0,7.01]
[1757592708795,6.9,227.32,227.0,7.01]
[1757592708796,20.18,227.3,227.0,7.01]
[1757592710291,6.9,227.3,227.0,7.01]
[1757592711594,6.9,227.3,227.02,7.01]
[1757592711791,6.9,227.3,227.03,170.54]
[1757592712095,6.9,227.3,227.04,7.01]
[1757592715395,20.18,227.3,227.04,7.01]
[1757592717198,6.9,227.3,227.04,7.01]
[1757592717900,6.9,227.3,227.05,168.42]
[1757592718198,6.9,227.3,227.06,6.96]
[1757592718894,6.9,227.3,227.07,168.14]
[1757592719099,6.9,227.3,227.06,175.06]
[1757592719595,7.05,227.24,226.89,6.96]
[1757592719800,7.05,227.24,226.85,295.72]
[1757592719801,7.05,227.24,226.94,6.96]
[1757592720701,7.05,227.24,226.93,167.9]
[1757592720702,7.05,227.24,226.97,6.96]
[1757592721296,7.05,227.24,226.99,6.96]
[1757592722205,7.05,227.24,227.01,6.96]
[1757592722503,7.05,227.24,227.02,6.96]
[1757592722698,7.05,227.24,227.03,167.62]
[1757592722995,7.05,227.24,227.04,6.96]
[1757592723703,7.05,227.24,227.05,167.16]
[1757592723902,7.05,227.24,227.06,6.96]
[1757592724102,20.33,227.35,227.06,6.96]
[1757592724399,7.05,227.35,227.06,6.96]
[1757592724603,7.05,227.35,227.08,6.96]
[1757592724804,7.05,227.35,227.1,62.0]
[1757592724999,7.05,227.35,227.11,6.96]
[1757592725199,7.05,227.43,227.14,6.96]
[1757592725604,7.05,227.43,227.14,20.24]
[1757592725802,7.05,227.43,227.15,156.3]
[1757592726104,7.05,227.43,227.21,6.96]
[1757592726304,7.05,227.57,227.23,6.96]
[1757592726502,20.33,227.55,227.23,6.96]
[1757592726800,7.05,227.55,227.23,6.96]
[1757592727202,7.05,227.55,227.28,6.96]
[1757592727899,7.05,227.55,227.3,6.96]
[1757592728303,7.05,227.55,227.31,62.0]
[1757592728503,7.05,227.55,227.31,160.28]
[1757592728809,7.05,227.55,227.3,6.96]
[1757592729906,10.9764367,227.49,227.15,6.96]
[1757592730208,7.05,227.48,227.19,6.96]
[1757592730410,7.05,227.33,227.3,0.02867141]
[1757592730801,7.05,227.48,227.19,6.96]
[1757592731304,7.05,227.4,227.11,6.96]
[1757592732110,311.45402337,227.42,227.11,6.96]
[1757592732111,7.05,227.34,227.12,105.3]
[1757592732306,7.05,227.34,227.13,6.96]
[1757592733009,7.05,227.34,227.13,172.28]
[1757592733214,7.05,227.34,227.13,6.96]
[1757592733516,0.03125196,227.26,227.21,0.0278236]
[1757592733708,7.05,227.25,227.21,0.0278236]
[1757592734106,0.03125196,227.26,227.21,0.0278236]
[1757592734907,7.08125196,227.26,227.21,0.0278236]
[1757592735307,0.03125196,227.26,227.21,0.0278236]
[1757592735508,0.03125196,227.26,227.21,6.9878236]
[1757592735712,0.03125196,227.26,227.22,6.96]
[1757592735912,0.03125196,227.26,227.21,0.0278236]
[1757592736513,0.03125196,227.26,227.22,6.96]
[1757592736715,7.05,227.39,227.22,6.96]
[1757592737219,4.85758667,227.49,227.22,6.96]
[1757592737220,7.05,227.46,227.22,6.96]
[1757592737519,13.80993758,227.46,227.22,6.96]
[1757592738016,13.80993758,227.46,227.32,0.03034418]
[1757592738313,7.05,227.46,227.22,6.96]
[1757592738517,11.90758667,227.46,227.22,6.96]
[1757592739716,7.05,227.46,227.22,6.96]
[1757592740319,7.05,227.46,227.24,6.96]
[1757592740519,7.05,227.46,227.24,81.9]
[1757592740721,7.05,227.46,227.24,6.96]
[1757592743221,7.05,227.45,227.13,8.62]
[1757592743523,7.05,227.45,227.14,6.96]
[1757592744521,23.42984327,227.48,227.15,78.16]
[1757592744723,7.05,227.47,227.16,6.96]
[1757592745018,7.05,227.47,227.18,6.96]
[1757592746027,7.05,227.47,227.2,6.96]
[1757592746322,7.05,227.47,227.22,6.96]
[1757592746723,7.05,227.47,227.23,137.52]
[1757592747030,7.05,227.47,227.24,6.96]
[1757592749227,7.39,227.58,227.24,6.96]
[1757592749431,7.39,227.58,227.25,4.91582127]
[1757592749633,7.39,227.58,227.27,7.0]
[1757592749828,7.39,227.58,227.29,7.0]
[1757592750134,7.39,227.58,227.4,7.02959237]
[1757592750532,7.39,227.58,227.4,7.0]
[1757592751223,7.39,227.72,227.4,7.0]
[1757592751423,7.39,227.72,227.47,0.03058407]
[1757592751829,7.39,227.72,227.45,7.0]
[1757592752028,7.39,227.72,227.57,0.03188601]
[1757592752434,7.39,227.72,227.49,7.0]
[1757592752733,7.39,227.71,227.43,7.0]
[1757592753031,25.9622566,227.71,227.43,7.0]
[1757592756634,30.81984327,227.71,227.43,7.0]
[1757592756938,7.39,227.62,227.37,7.0]
[1757592757334,25.9622566,227.62,227.37,7.0]
[1757592757534,7.39,227.62,227.37,7.0]
[1757592757934,7.39,227.67,227.37,7.0]
[1757592758331,18.5722566,227.6,227.37,7.0]
[1757592758530,7.39,227.59,227.37,7.0]
[1757592758939,7.39,227.61,227.29,25.22]
[1757592759240,7.39,227.6,227.3,7.0]
[1757592759633,18.5722566,227.59,227.3,7.0]
[1757592759837,7.39,227.58,227.3,7.0]
[1757592760535,7.39,227.58,227.31,157.1]
[1757592760731,7.39,227.55,227.32,7.0]
[1757592761131,7.39,227.49,227.32,7.0]
[1757592761439,7.39,227.54,227.32,7.0]
[1757592761632,6.75202874,227.53,227.32,7.0]
[1757592761837,7.41851126,227.43,227.38,0.03254433]
[1757592762039,0.02851126,227.43,227.38,0.03254433]
[1757592762236,7.39,227.42,227.32,7.0]
[1757592762837,0.03047222,227.39,227.35,0.03203882]
[1757592763234,0.03047222,227.39,227.36,7.0]
[1757592763440,7.39,227.56,227.36,7.0]
[1757592764640,7.39,227.56,227.44,0.03353971]
[1757592765445,7.39,227.64,227.45,7.0]
[1757592766346,7.39,227.64,227.52,0.03158334]
[1757592768035,7.39,227.71,227.53,7.0]
[1757592768847,7.39,227.71,227.6,0.03044193]
[1757592769850,7.39,227.68,227.6,0.03044193]
[1757592770042,14.14202874,227.68,227.6,0.03044193]
[1757592770439,7.39,227.65,227.47,7.0]
[1757592771558,6.75202874,227.64,227.47,7.0]
[1757592771753,7.39,227.63,227.44,295.4]
[1757592771950,4.85758667,227.74,227.45,7.0]
[1757592772152,7.39,227.75,227.49,7.0]
[1757592772346,7.39,227.91,227.6,6.75202874]
[1757592772551,7.39,227.91,227.61,7.0]
[1757592773149,6.75202874,227.9,227.61,7.0]
[1757592773354,0.03055448,227.78,227.74,0.03121688]
[1757592773549,7.42055448,227.78,227.74,0.03121688]
[1757592773748,7.39,227.78,227.61,7.0]
[1757592776347,7.39,227.78,227.52,7.0]
[1757592779058,6.85,227.72,227.52,7.0]
[1757592779756,6.85,227.72,227.6,0.02867093]
[1757592780953,6.85,227.79,227.6,0.02867093]
[1757592781150,6.85,227.79,227.61,7.03]
[1757592781455,155.16,227.89,227.61,7.03]
[1757592781650,6.85,227.9,227.63,7.03]
[1757592781854,6.85,227.9,227.62,6.75202874]
[1757592781855,11.30422226,227.73,227.64,62.0]
[1757592782453,11.30422226,227.73,227.65,0.44]
[1757592782652,11.30422226,227.73,227.64,62.0]
[1757592782862,11.30422226,227.73,227.64,68.75202874]
[1757592783158,11.30422226,227.73,227.66,6.75202874]
[1757592783857,11.30422226,227.73,227.61,6.75202874]
[1757592784261,11.30422226,227.73,227.61,7.19202874]
[1757592784462,11.30422226,227.73,227.65,6.75202874]
[1757592784956,6.85,227.9,227.71,6.75202874]
[1757592785157,295.18,228.07,227.77,6.75202874]
[1757592785158,6.85,228.02,227.77,6.75202874]
[1757592785364,6.85,228.02,227.78,10.94]
[1757592785555,6.85,228.02,227.79,154.4]
[1757592785760,6.85,228.02,227.77,301.93202874]
[1757592785960,6.85,228.02,227.78,154.3]
[1757592786357,6.85,228.02,227.77,301.93202874]
[1757592786358,6.85,228.02,227.79,154.34]
[1757592786561,6.85,228.02,227.8,154.22]
[1757592786757,6.85,228.02,227.81,216.14]
[1757592787260,6.85,228.02,227.81,154.14]
[1757592787455,6.85,228.02,227.77,301.93202874]
[1757592787662,6.85,228.02,227.78,153.88]
[1757592787858,295.18,228.07,227.77,301.93202874]
[1757592787859,6.85,228.01,227.77,295.18]
[1757592788058,6.85,228.01,227.87,0.02854622]
[1757592788560,0.0337189,227.96,227.77,295.18]
[1757592788762,0.0337189,227.96,227.92,0.02916924]
[1757592788962,6.85,228.01,227.77,295.18]
[1757592789466,6.85,228.01,227.79,6.75202874]
[1757592790060,6.85,228.01,227.8,153.38]
[1757592790367,6.85,228.01,227.81,62.0]
[1757592790561,6.85,228.01,227.82,153.32]
[1757592791164,6.85,228.1,227.82,153.32]
[1757592791558,6.85,228.1,227.85,6.75202874]
[1757592791863,6.85,228.1,227.82,6.75202874]
[1757592792467,160.25202874,228.11,227.77,448.26]
[1757592792759,6.75202874,228.05,227.77,448.26]
[1757592792963,301.81,228.04,227.77,448.26]
[1757592793260,294.96,228.04,227.77,448.26]
[1757592793564,6.85,228.02,227.77,448.26]
[1757592793960,6.85,227.99,227.77,153.08]
[1757592794166,6.75202874,227.97,227.68,159.27202874]
[1757592794361,6.75202874,227.97,227.68,152.52]
[1757592794667,12.91,227.96,227.68,152.52]
[1757592794866,6.85,227.96,227.68,152.52]
[1757592795365,6.85,227.96,227.71,6.75202874]
[1757592796164,6.75202874,228.08,227.71,6.75202874]
[1757592796359,301.77,228.07,227.71,6.75202874]
[1757592796565,6.85,228.07,227.77,6.75202874]
[1757592797270,6.85,228.07,227.68,165.8]
[1757592797271,6.85,228.07,227.76,6.75202874]
[1757592797470,6.85,228.07,227.68,165.8]
[1757592797471,6.85,228.07,227.79,6.75202874]
[1757592797669,6.85,228.07,227.8,6.04]
[1757592797864,6.75202874,228.06,227.75,11.48]
[1757592798071,6.06,228.05,227.75,11.48]
[1757592798471,5.44,228.04,227.75,11.48]
[1757592798672,6.85,227.99,227.75,11.48]
[1757592798867,6.85,227.99,227.76,62.0]
[1757592799068,6.85,227.99,227.79,4.0672893]
[1757592799470,6.85,227.99,227.76,62.0]
[1757592799967,6.85,227.99,227.81,4.0672893]
[1757592800162,6.85,227.99,227.77,4.0672893]
[1757592801073,6.85,228.08,227.82,4.0672893]
[1757592801479,4.0672893,228.06,227.82,4.0672893]
[1757592801677,4.0672893,228.06,227.75,11.48]
[1757592801678,6.85,228.05,227.78,4.0672893]
[1757592801877,6.85,228.05,227.75,11.48]
[1757592802076,0.02797234,227.93,227.88,0.02951697]
[1757592802476,0.02797234,227.93,227.76,4.0672893]
[1757592802477,6.85,227.99,227.76,4.0672893]
[1757592803382,6.85,228.0,227.75,11.48]
[1757592803576,4.0672893,227.96,227.75,11.48]
[1757592803777,6.85,227.95,227.75,11.48]
[1757592803974,6.85,227.95,227.83,0.03044436]
[1757592804578,0.031454,227.91,227.83,0.03044436]
[1757592804775,6.881454,227.91,227.83,0.03044436]
[1757592804971,6.881454,227.91,227.63,294.94]
[1757592804972,6.85,227.9,227.63,294.94]
[1757592805176,6.85,227.86,227.63,294.94]
[1757592805481,4.0672893,227.87,227.63,294.94]
[1757592805783,6.85,227.81,227.58,150.66]
[1757592806377,4.0672893,227.82,227.58,150.66]
[1757592806583,0.03347118,227.72,227.59,4.0672893]
[1757592806977,6.85,227.81,227.59,4.0672893]
[1757592807281,6.85,227.81,227.58,150.66]
[1757592807282,0.00097026,227.68,227.64,4.0672893]
[1757592807678,6.85,227.87,227.64,4.0672893]
[1757592808386,9.91170619,228.19,227.58,150.66]
[1757592808387,7.51,227.93,227.6,3.52586572]
[1757592808585,7.51,227.93,227.73,0.02799539]
[1757592809082,7.51,227.93,227.71,4.0672893]
[1757592809284,7.51,227.93,227.71,154.6872893]
[1757592809779,4.0672893,228.02,227.76,4.0672893]
[1757592810080,4.85758667,228.18,227.71,154.6872893]
[1757592810382,4.85758667,228.18,227.87,4.0672893]
[1757592810383,4.0672893,228.16,227.87,4.0672893]
[1757592810585,4.0672893,228.16,227.88,151.5]
[1757592810586,7.51,228.15,227.88,151.5]
[1757592811181,7.51,228.15,227.92,4.0672893]
[1757592811682,7.51,228.2,227.88,151.5]
[1757592811885,20.01,228.2,227.91,4.0672893]
[1757592812185,7.51,228.15,227.88,155.5672893]
[1757592812380,4.0672893,228.14,227.88,151.5]
[1757592812981,7.51,228.11,227.88,151.5]
[1757592813286,7.51,228.11,227.89,4.0672893]
[1757592813679,7.51,228.11,227.88,151.5]
[1757592813883,7.51,228.11,227.93,4.0672893]
[1757592814081,4.0672893,228.21,227.93,4.0672893]
[1757592814286,7.51,228.2,227.93,4.0672893]
[1757592814482,7.51,228.2,227.98,4.0672893]
[1757592814689,7.51,228.26,228.03,4.0672893]
[1757592814884,7.51,228.26,228.08,4.0672893]
[1757592815184,7.51,228.26,228.03,4.0672893]
[1757592815185,7.51,228.26,228.04,3.6]
[1757592815390,7.51,228.26,228.08,4.0672893]
[1757592815888,7.51,228.26,228.03,154.5272893]
[1757592816089,4.0672893,228.3,228.03,150.46]
[1757592816291,4.0672893,228.3,228.01,294.82]
[1757592816292,7.51,228.29,228.04,150.22]
[1757592816488,22.32,228.25,228.09,4.0672893]
[1757592816987,22.32,228.25,228.15,4.0672893]
[1757592817391,22.32,228.25,228.07,4.0672893]
[1757592817589,22.32,228.25,228.04,150.76]
[1757592817892,7.51,228.21,227.94,154.8072893]
[1757592818087,7.51,228.21,227.99,4.0672893]
[1757592818287,22.32,228.25,227.99,4.0672893]
[1757592818489,22.32,228.25,228.01,13.28]
[1757592818683,22.32,228.25,228.08,4.0672893]
[1757592818883,0.02833148,228.15,228.11,0.03110389]
[1757592819385,22.32,228.25,228.12,0.44]
[1757592819685,22.32,228.25,228.12,4.0672893]
[1757592819686,0.02974001,228.15,228.12,4.0672893]
[1757592819889,22.32,228.25,228.12,27.18]
[1757592820290,22.32,228.25,228.16,0.03052734]
[1757592820792,0.02775268,228.21,228.16,0.03052734]
[1757592821286,7.51,228.2,228.06,17.34]
[1757592822290,7.51,228.2,227.94,78.48]
[1757592822492,0.03097553,228.15,227.94,78.48]
[1757592822692,17.14,228.19,227.94,78.48]
[1757592823092,0.03314054,228.07,227.98,4.0672893]
[1757592823392,0.0026132,228.07,228.03,4.0672893]
[1757592823893,17.14,228.19,228.04,0.44]
[1757592824087,17.14,228.19,228.04,4.0672893]
[1757592824286,17.14,228.19,227.96,3.52586572]
[1757592824488,17.14,228.19,228.03,4.0672893]
[1757592824697,17.14,228.19,227.99,51.32]
[1757592825086,17.14,228.19,228.09,0.02946596]
[1757592828995,0.02850051,228.16,228.09,0.02946596]
[1757592829701,7.51,228.15,228.09,0.02946596]
[1757592829900,7.51,228.15,227.89,0.03]
[1757592829901,4.0672893,228.14,227.89,0.03]
[1757592830093,7.51,228.15,227.91,0.03]
[1757592830598,7.51,228.15,227.94,0.03]
[1757592831299,17.14,228.19,228.0,4.0672893]
[1757592831703,17.14,228.19,227.95,4.0672893]
[1757592831704,7.51,228.18,227.95,4.0672893]
[1757592831892,7.51,228.18,227.92,4.0672893]
[1757592832093,7.51,228.18,227.9,4.0672893]
[1757592832094,4.0672893,228.18,227.9,4.0672893]
[1757592832290,7.51,228.12,227.85,298.8072893]
[1757592832494,7.51,228.1,227.86,150.72]
[1757592832697,7.51,228.05,227.86,150.72]
[1757592832901,7.51,228.0,227.86,150.72]
[1757592833303,0.02883869,227.98,227.86,150.72]
[1757592834397,0.02883869,227.98,227.87,62.0]
[1757592835098,0.02883869,227.98,227.9,0.03076224]
[1757592836504,7.51,227.97,227.9,0.03076224]
[1757592837199,0.02883869,227.98,227.9,0.03076224]
[1757592838302,7.52883869,227.98,227.9,0.03076224]
[1757592839200,7.5,227.94,227.73,0.03]
[1757592840304,0.02777446,227.86,227.73,0.03]
[1757592840506,0.02777446,227.86,227.67,3.55586572]
[1757592840697,7.5,227.8,227.56,3.52586572]
[1757592840897,7.5,227.75,227.54,0.03]
[1757592841099,0.03185139,227.7,227.54,0.03]
[1757592841299,7.5,227.69,227.54,0.03]
[1757592841597,7.5,227.69,227.55,62.0]
[1757592841799,0.02814873,227.64,227.55,62.0]
[1757592842005,0.02814873,227.64,227.56,4.0972893]
[1757592842207,20.69,228.02,227.57,0.03]
[1757592842400,7.5,227.87,227.62,0.03]
[1757592842801,7.5,227.81,227.62,0.03]
[1757592843398,0.02979608,227.74,227.62,0.03]
[1757592844501,0.02979608,227.74,227.62,4.0972893]
[1757592844703,0.02979608,227.74,227.63,0.03]
[1757592845108,0.02979608,227.74,227.64,62.0]
[1757592845307,0.02979608,227.74,227.65,87.9]
[1757592846305,0.02979608,227.74,227.66,0.47]
[1757592846603,0.02979608,227.74,227.66,0.03]
[1757592848310,0.02979608,227.74,227.67,4.5072893]
[1757592848507,0.02979608,227.74,227.67,0.44]
[1757592848806,0.02979608,227.74,227.68,66.0672893]
[1757592849210,7.5,227.9,227.7,0.03]
[1757592850499,4.0672893,227.94,227.7,0.03]
[1757592850500,0.03278512,227.82,227.7,0.03]
[1757592851109,0.03278512,227.82,227.68,73.32]
[1757592851301,0.03278512,227.82,227.44,294.62]
[1757592851302,0.03278512,227.82,227.66,89.16]
[1757592851506,4.0672893,227.84,227.66,89.16]
[1757592851707,0.02860354,227.76,227.66,89.16]
[1757592852107,7.5,227.75,227.58,4.0672893]
[1757592852404,7.5,227.82,227.59,167.28]
[1757592852604,7.5,227.82,227.63,4.0672893]
[1757592852811,0.02846523,227.69,227.63,4.0672893]
[1757592853012,7.5,227.82,227.63,4.0672893]
[1757592853207,0.03120186,227.68,227.63,4.0672893]
[1757592853708,0.02905749,227.68,227.63,4.0672893]
[1757592854016,7.5,227.87,227.64,3.52586572]
[1757592854210,7.5,227.87,227.67,4.0672893]
[1757592854411,7.5,227.97,227.72,4.0672893]
[1757592854612,7.5,227.97,227.73,16.8]
[1757592854812,7.5,227.97,227.74,4.0672893]
[1757592855914,7.5,227.97,227.76,4.0672893]
[1757592856511,0.03304145,227.89,227.84,0.03136618]
[1757592856712,7.5,227.88,227.84,0.03136618]
[1757592856912,0.03304145,227.89,227.84,0.03136618]
[1757592859314,0.03304145,227.89,227.85,62.0]
[1757592859513,0.03304145,227.89,227.84,0.03136618]
[1757592860216,0.03304145,227.89,227.84,0.47136618]
[1757592860412,0.03304145,227.89,227.84,0.03136618]
[1757592863223,7.5,227.88,227.84,0.03136618]
[1757592863417,0.03304145,227.89,227.84,0.03136618]
[1757592864125,7.94,227.88,227.73,145.02]
[1757592864324,7.5,227.88,227.73,145.02]
[1757592864725,49.14,227.91,227.75,3.52586572]
[1757592865331,7.5,227.84,227.68,298.36586572]
[1757592865621,7.5,227.84,227.69,65.55586572]
[1757592865828,7.5,227.84,227.69,62.03]
[1757592866024,0.02833486,227.78,227.69,65.55586572]
[1757592866523,0.02833486,227.78,227.69,62.03]
[1757592868827,0.02833486,227.78,227.63,3.52586572]
[1757592869021,0.02833486,227.78,227.68,13.15]
[1757592869227,49.14,227.91,227.68,13.15]
[1757592869228,49.14,227.91,227.75,0.04]
[1757592869522,49.14,227.91,227.76,148.68586572]
[1757592869726,49.14,227.91,227.76,145.16]
[1757592871717,49.14,227.91,227.77,62.0]
[1757592871922,7.5,227.9,227.78,144.74]
[1757592873023,7.5,227.89,227.78,144.74]
[1757592873225,7.5,227.88,227.78,144.74]
[1757592873524,7.5,227.9,227.78,144.74]
[1757592873725,7.5,227.9,227.78,137.21]
[1757592873929,7.5,227.9,227.7,3.52586572]
[1757592873930,7.5,227.89,227.7,3.52586572]
[1757592874132,7.5,227.88,227.69,147.66586572]
[1757592874431,7.5,227.88,227.7,3.52586572]
[1757592874931,7.5,227.9,227.69,147.66586572]
[1757592875126,7.5,227.9,227.7,3.52586572]
[1757592875329,6.72078855,227.87,227.69,144.14]
[1757592876225,6.72078855,227.87,227.69,147.66586572]
[1757592877130,6.72078855,227.9,227.69,147.66586572]
[1757592877639,6.72078855,227.84,227.69,144.14]
[1757592877933,7.5,227.83,227.69,144.14]
[1757592878930,7.5,227.83,227.72,3.52586572]
[1757592878931,22.22,227.82,227.72,3.52586572]
[1757592879131,22.22,227.82,227.73,3.52586572]
[1757592879433,22.22,227.82,227.72,3.52586572]
[1757592880039,22.22,227.82,227.71,3.52586572]
[1757592880239,22.22,227.82,227.72,3.52586572]
[1757592880637,26.07,227.81,227.72,3.52586572]
[1757592880838,26.07,227.81,227.71,3.52586572]
[1757592881038,26.07,227.81,227.72,3.52586572]
[1757592881433,26.07,227.81,227.73,3.52586572]
[1757592881935,26.07,227.81,227.72,3.52586572]
[1757592882141,26.07,227.81,227.71,3.52586572]
[1757592882436,26.07,227.81,227.68,3.52586572]
[1757592882639,7.5,227.8,227.66,10.79586572]
[1757592883542,26.07,227.81,227.67,7.27]
[1757592883742,18.54,227.81,227.78,18.06582127]
[1757592883940,21.34,227.82,227.79,155.11]
[1757592884134,21.34,227.82,227.81,7.12854978]
[1757592884334,21.34,227.82,227.77,9.85854896]
[1757592884538,21.34,227.82,227.8,4.75542943]
[1757592885644,21.34,227.82,227.81,62.0]
[1757592886746,21.34,227.82,227.81,66.75542943]
[1757592886945,21.34,227.82,227.81,66.761068]
[1757592887145,21.34,227.82,227.81,209.40298861]
[1757592887548,21.34,227.82,227.81,147.40298861]
[1757592887948,21.34,227.82,227.81,142.64]
[1757592888349,21.34,227.82,227.81,142.28]
[1757592888943,21.34,227.82,227.81,147.04303177]
[1757592889143,21.34,227.82,227.81,147.04487264]
[1757592889449,21.34,227.82,227.81,142.28]
[1757592889842,21.34,227.82,227.81,142.72]
[1757592890550,21.34,227.82,227.81,204.72]
[1757592890742,21.34,227.82,227.81,204.28]
[1757592890942,21.34,227.82,227.81,204.72]
[1757592891139,16.34,227.82,227.81,204.72]
[1757592891748,16.34,227.82,227.81,62.0]
[1757592891942,16.34,227.82,227.81,210.74421189]
[1757592892249,16.34,227.82,227.81,141.6]
[1757592892450,17.22,227.82,227.79,7.14421189]
[1757592892643,17.22,227.82,227.81,4.76520551]
[1757592893246,17.22,227.82,227.76,7.14421189]
[1757592893552,17.22,227.82,227.73,294.86]
[1757592893553,7.5,227.81,227.77,3.57808021]
[1757592893749,0.88,227.79,227.77,3.57808021]
[1757592894150,7.5,227.78,227.77,3.57808021]
[1757592894346,8.38,227.78,227.76,3.57808021]
[1757592894543,7.5,227.78,227.76,3.57808021]
[1757592894738,0.88,227.77,227.76,3.57808021]
[1757592895946,0.88,227.77,227.75,3.57808021]
[1757592896150,16.34,227.82,227.75,3.57808021]
[1757592896350,0.88,227.76,227.75,3.57808021]
[1757592898450,0.88,227.76,227.74,3.57808021]
[1757592898649,16.34,227.82,227.69,7.14421189]
[1757592898650,16.34,227.82,227.75,3.57808021]
[1757592898851,16.34,227.82,227.76,3.57808021]
[1757592899353,16.34,227.82,227.79,3.57808021]
[1757592899653,16.34,227.82,227.78,3.57808021]
[1757592899955,7.11,227.81,227.77,3.57808021]
[1757592900355,0.88,227.78,227.76,3.57808021]
[1757592900551,0.88,227.77,227.76,3.57808021]
[1757592900848,7.55,227.81,227.64,7.14421189]
[1757592901047,7.11,227.81,227.61,7.14421189]
[1757592901251,16.34,227.82,227.59,301.92421189]
[1757592901752,7.11,227.81,227.59,301.92421189]
[1757592901950,16.34,227.82,227.59,294.78]
[1757592902151,6.72078855,227.77,227.59,294.78]
[1757592902846,7.11,227.76,227.59,294.78]
[1757592903158,23.45,227.82,227.61,13.15]
[1757592903454,23.45,227.82,227.65,13.15]
[1757592903651,23.45,227.82,227.66,62.0]
[1757592904950,16.34,227.82,227.66,62.0]
[1757592905156,7.11,227.81,227.64,4.77]
[1757592906253,7.11,227.81,227.6,7.14421189]